bitfinex-derivatives/quotes_BTCF0:USTF0_20251209
["timestamp","ask_amount","ask_price","bid_price","bid_amount"]
[1765248697458,0.05444,90287.0,90286.0,0.03976885]
[1765248697765,0.05444,90281.0,90280.0,0.1807023]
[1765248697965,0.05444,90281.0,90280.0,0.03991376]
[1765248698170,0.05444,90281.0,90280.0,0.02764612]
[1765248698379,0.05444,90281.0,90280.0,0.05668612]
[1765248699176,0.05444,90281.0,90280.0,0.05768612]
[1765248699575,0.01635,90288.0,90287.0,0.05652]
[1765248699576,0.07079,90288.0,90287.0,0.05652]
[1765248699770,0.05444,90288.0,90287.0,0.0675948]
[1765248700876,0.0273,90288.0,90287.0,0.0675948]
[1765248701073,0.05444,90288.0,90287.0,0.0685948]
[1765248701483,0.05544,90288.0,90287.0,0.0685948]
[1765248706369,0.07191,90288.0,90287.0,0.0685948]
[1765248715380,0.07191,90288.0,90287.0,0.05752]
[1765248716485,0.001,90288.0,90287.0,0.05752]
[1765248716778,0.001,90288.0,90287.0,0.49724126]
[1765248716981,0.01647,90310.0,90298.0,0.0685135]
[1765248717283,0.01647,90310.0,90298.0,0.4685135]
[1765248717673,0.05778612,90299.0,90298.0,0.4685135]
[1765248718879,0.05978612,90299.0,90298.0,0.4685135]
[1765248719674,0.06678612,90299.0,90298.0,0.4685135]
[1765248721086,0.06678612,90299.0,90298.0,0.05744]
[1765248721783,0.03776612,90299.0,90298.0,0.05744]
[1765248721980,0.03776612,90299.0,90298.0,0.44744]
[1765248722187,0.06781612,90299.0,90298.0,0.44744]
[1765248723486,0.06781612,90299.0,90298.0,0.48723513]
[1765248723879,0.06781612,90299.0,90298.0,0.49830863]
[1765248724078,0.06781612,90299.0,90298.0,0.4585135]
[1765248725587,0.06781612,90299.0,90298.0,0.44744]
[1765248725778,0.05865,90296.0,90295.0,0.08871]
[1765248725978,0.05865,90289.0,90288.0,0.0597]
[1765248726178,0.07516,90288.0,90287.0,0.02901]
[1765248726378,0.07516,90288.0,90287.0,0.05824]
[1765248727289,0.05865,90288.0,90287.0,0.06024]
[1765248727586,0.05865,90288.0,90287.0,0.10004246]
[1765248727777,0.05865,90288.0,90287.0,0.06024]
[1765248727977,0.05865,90288.0,90287.0,0.06124]
[1765248728284,0.05865,90288.0,90287.0,0.10104246]
[1765248728686,0.05865,90288.0,90287.0,0.10004246]
[1765248728887,0.05865,90288.0,90287.0,0.10204246]
[1765248732591,0.07638,90288.0,90287.0,0.06224]
[1765248732997,0.47638,90288.0,90287.0,0.004]
[1765248733382,0.47638,90288.0,90287.0,0.0028945]
[1765248734786,0.47638,90288.0,90287.0,0.0038945]
[1765248735584,0.47638,90288.0,90287.0,0.005]
[1765248736896,0.47638,90288.0,90287.0,0.06361]
[1765248737498,0.47638,90288.0,90287.0,0.005]
[1765248744801,0.47638,90288.0,90287.0,0.03412]
[1765248745001,0.47638,90288.0,90287.0,0.005]
[1765248745594,0.47638,90288.0,90287.0,0.06361]
[1765248746101,0.47638,90288.0,90287.0,0.03412]
[1765248746299,0.47638,90288.0,90287.0,0.06361]
[1765248748594,0.47638,90288.0,90287.0,0.005]
[1765248755408,0.47638,90288.0,90287.0,0.06361]
[1765248755614,0.07638,90288.0,90287.0,0.06361]
[1765248755798,0.05865,90288.0,90287.0,0.06361]
[1765248758303,0.07638,90288.0,90287.0,0.10342374]
[1765248758900,0.07638,90288.0,90287.0,0.005]
[1765248759208,0.46638,90288.0,90287.0,0.005]
[1765248761599,0.46638,90288.0,90287.0,0.06361]
[1765248762003,0.46638,90288.0,90287.0,0.03412]
[1765248762205,0.46638,90288.0,90287.0,0.005]
[1765248770617,0.07638,90288.0,90287.0,0.03423]
[1765248770820,0.07638,90288.0,90287.0,0.06156]
[1765248771315,0.05755,90294.0,90293.0,0.05656]
[1765248772313,0.05755,90294.0,90293.0,0.0676341]
[1765248773922,0.07533,90294.0,90293.0,0.05856]
[1765248774618,0.07533,90294.0,90293.0,0.05956]
[1765248774811,0.07533,90294.0,90293.0,0.06256]
[1765248782322,0.05755,90294.0,90293.0,0.06256]
[1765248782917,0.05755,90294.0,90293.0,0.03523]
[1765248783319,0.05755,90294.0,90293.0,0.06311]
[1765248783712,0.05755,90294.0,90293.0,0.03523]
[1765248783913,0.05755,90294.0,90293.0,0.06311]
[1765248784308,0.05755,90294.0,90293.0,0.03523]
[1765248785415,0.05755,90294.0,90293.0,0.06311]
[1765248785715,0.05755,90294.0,90293.0,0.03523]
[1765248785922,0.05755,90294.0,90293.0,0.006]
[1765248786126,0.05755,90294.0,90293.0,0.03415]
[1765248786820,0.44755,90294.0,90293.0,0.03415]
[1765248787023,0.44755,90294.0,90293.0,0.006]
[1765248789229,0.44755,90294.0,90293.0,0.03415]
[1765248790221,0.44755,90294.0,90293.0,0.06203]
[1765248790222,0.17755,90294.0,90293.0,0.06203]
[1765248793314,0.42755,90294.0,90293.0,0.06203]
[1765248794920,0.42755,90294.0,90293.0,0.006]
[1765248796922,0.05788,90286.0,90285.0,0.03981374]
[1765248797119,0.05788,90286.0,90280.0,0.05986612]
[1765248797120,0.05788,90281.0,90280.0,0.03997986]
[1765248797322,0.48788,90281.0,90280.0,0.03997986]
[1765248797727,0.48788,90281.0,90280.0,0.00016612]
[1765248798134,0.05788,90281.0,90280.0,0.05752612]
[1765248798926,0.05788,90281.0,90280.0,0.05852612]
[1765248799636,0.05788,90281.0,90280.0,0.06252612]
[1765248803445,0.05788,90281.0,90280.0,0.00516612]
[1765248805542,0.05788,90281.0,90280.0,0.06252612]
[1765248807847,0.05788,90281.0,90280.0,0.00516612]
[1765248808551,0.40788,90281.0,90280.0,0.00516612]
[1765248808943,0.07363,90265.0,90264.0,0.02968]
[1765248809536,0.07363,90265.0,90264.0,0.05736]
[1765248810043,0.07463,90265.0,90264.0,0.05736]
[1765248811543,0.07863,90265.0,90264.0,0.05836]
[1765248824072,0.07863,90265.0,90264.0,0.48836]
[1765248824278,0.06288,90265.0,90264.0,0.48836]
[1765248824874,0.06288,90265.0,90264.0,0.12836]
[1765248825071,0.06288,90265.0,90264.0,0.05836]
[1765248825776,0.48288,90265.0,90264.0,0.05836]
[1765248826169,0.06288,90265.0,90264.0,0.05836]
[1765248833081,0.06288,90265.0,90264.0,0.001]
[1765248834085,0.06288,90265.0,90264.0,0.05912]
[1765248835182,0.06288,90265.0,90264.0,0.001]
[1765248835379,0.47288,90265.0,90264.0,0.001]
[1765248835575,0.0571,90259.0,90258.0,0.03981374]
[1765248835782,0.0571,90257.0,90256.0,0.03981374]
[1765248835985,0.07465,90256.0,90255.0,0.00016612]
[1765248836188,0.47465,90256.0,90255.0,0.00016612]
[1765248837294,0.47565,90256.0,90255.0,0.00116612]
[1765248837784,0.47565,90256.0,90255.0,0.00216612]
[1765248837985,0.4867287,90256.0,90255.0,0.00216612]
[1765248843492,0.4867287,90256.0,90252.0,0.00010044]
[1765248843493,0.0571,90253.0,90252.0,0.00010044]
[1765248843693,0.0571,90245.0,90244.0,0.03981374]
[1765248843884,0.0571,90245.0,90240.0,0.06080816]
[1765248843885,0.01755,90244.0,90240.0,0.00110816]
[1765248844084,0.0571,90241.0,90240.0,0.00110816]
[1765248844288,0.0571,90241.0,90219.0,0.07934062]
[1765248844289,0.0571,90224.0,90223.0,0.03981374]
[1765248844596,0.0571,90221.0,90220.0,0.12966098]
[1765248844782,0.07465,90220.0,90219.0,0.06835374]
[1765248844986,0.07465,90220.0,90219.0,0.09793374]
[1765248845292,0.07465,90220.0,90219.0,0.05812]
[1765248845999,9.716e-05,90221.0,90220.0,0.0864231]
[1765248846295,0.02917716,90221.0,90220.0,0.4964231]
[1765248846595,0.05719716,90221.0,90220.0,0.4964231]
[1765248846986,0.05719716,90221.0,90220.0,0.3364231]
[1765248847195,0.06019716,90221.0,90220.0,0.3374231]
[1765248847882,0.06119716,90221.0,90220.0,0.3202031]
[1765248848083,0.06119716,90221.0,90220.0,0.0406231]
[1765248848287,0.06119716,90221.0,90220.0,0.0699531]
[1765248849795,0.00409716,90221.0,90220.0,0.4599531]
[1765248851192,0.05720622,90233.0,90232.0,0.0678516]
[1765248851493,0.05720622,90233.0,90232.0,0.4578516]
[1765248852086,0.02965622,90233.0,90232.0,0.4578516]
[1765248852483,0.05720622,90233.0,90232.0,0.4578516]
[1765248852692,0.05820622,90233.0,90232.0,0.4588516]
[1765248853094,0.05720622,90233.0,90232.0,0.4578516]
[1765248853405,0.05820622,90233.0,90232.0,0.4618516]
[1765248854994,0.00116622,90233.0,90232.0,0.4618516]
[1765248862710,0.0110797,90248.0,90244.0,0.0110801]
[1765248862900,0.42567,90248.0,90247.0,0.05448]
[1765248864911,0.42667,90248.0,90247.0,0.05448]
[1765248865303,0.42567,90248.0,90247.0,0.05448]
[1765248865504,0.42667,90248.0,90247.0,0.05548]
[1765248866013,0.42667,90248.0,90247.0,0.05748]
[1765248870921,0.42667,90248.0,90247.0,0.03023]
[1765248871514,0.42667,90248.0,90247.0,0.003]
[1765248873918,0.0667507,90239.0,90238.0,0.00016622]
[1765248874104,0.4267507,90239.0,90238.0,0.00016622]
[1765248875217,0.4277507,90239.0,90238.0,0.00816622]
[1765248875825,0.4277507,90239.0,90238.0,0.00616622]
[1765248876023,0.4277507,90239.0,90238.0,0.00716622]
[1765248876226,0.4277507,90239.0,90238.0,0.00616622]
[1765248877413,0.4277507,90239.0,90238.0,0.00516622]
[1765248877725,0.4277507,90239.0,90238.0,0.00416622]
[1765248883911,0.0701728,90222.0,90218.0,0.03967046]
[1765248884116,0.07594,90216.0,90215.0,0.00110847]
[1765248884424,0.50594,90216.0,90215.0,0.00110847]
[1765248885422,0.51094,90216.0,90215.0,0.00210847]
[1765248885622,0.0701759,90197.0,90196.0,0.03967046]
[1765248885814,0.0701759,90197.0,90190.0,0.00110878]
[1765248885815,0.0701766,90191.0,90190.0,0.00110878]
[1765248887428,0.0701766,90191.0,90190.0,0.05890878]
[1765248887634,0.0781766,90191.0,90190.0,0.06090878]
[1765248888016,0.0781766,90191.0,90190.0,0.00310878]
[1765248888427,0.0781766,90191.0,90190.0,0.03091878]
[1765248889227,0.0781766,90191.0,90190.0,0.06090878]
[1765248891632,0.0781766,90191.0,90190.0,0.00310878]
[1765248892634,0.0781766,90191.0,90190.0,0.03091878]
[1765248893334,0.0781766,90191.0,90190.0,0.06090878]
[1765248893727,0.0781766,90191.0,90190.0,0.00310878]
[1765248893926,0.05909,90173.0,90172.0,0.05790568]
[1765248895128,0.06009,90173.0,90172.0,0.05890568]
[1765248895741,0.06009,90173.0,90172.0,0.02991568]
[1765248896324,0.06009,90173.0,90172.0,0.05990568]
[1765248898342,0.06409,90173.0,90172.0,0.06090568]
[1765248898525,0.06409,90173.0,90172.0,0.00310568]
[1765248898730,0.0701797,90166.0,90165.0,0.00110908]
[1765248898941,0.0701797,90166.0,90165.0,0.37110908]
[1765248899546,0.05909,90166.0,90165.0,0.37110908]
[1765248899731,0.05918914,90166.0,90165.0,0.37110908]
[1765248900844,0.05918914,90166.0,90165.0,0.37310908]
[1765248900845,0.06118914,90166.0,90165.0,0.37310908]
[1765248901242,0.06718914,90166.0,90165.0,0.37210908]
[1765248901451,0.06718914,90166.0,90165.0,0.39991908]
[1765248901857,0.06718914,90166.0,90165.0,0.42990908]
[1765248902238,0.06918914,90166.0,90165.0,0.42990908]
[1765248902941,0.03978914,90166.0,90165.0,0.42990908]
[1765248903240,0.01009914,90166.0,90165.0,0.42990908]
[1765248903745,0.03721914,90166.0,90165.0,0.42990908]
[1765248903939,0.06654914,90166.0,90165.0,0.42990908]
[1765248906253,0.01009914,90166.0,90165.0,0.42990908]
[1765248911652,0.01009914,90166.0,90165.0,0.44099888]
[1765248913639,0.011087,90188.0,90181.0,0.0685679]
[1765248913941,0.10988,90198.0,90181.0,0.0685679]
[1765248913942,0.05606,90187.0,90186.0,0.05748]
[1765248915348,0.05622631,90196.0,90195.0,0.05748]
[1765248915650,0.05622631,90196.0,90195.0,0.02847]
[1765248915853,0.0388581,90196.0,90195.0,0.05748]
[1765248917758,0.002,90196.0,90195.0,0.06048]
[1765248917951,0.05806,90196.0,90195.0,0.06048]
[1765248918153,0.00016631,90205.0,90195.0,0.05748]
[1765248918359,0.05622631,90205.0,90204.0,0.05748]
[1765248918852,0.02843631,90205.0,90204.0,0.07487]
[1765248919040,0.05622631,90205.0,90204.0,0.05748]
[1765248919556,0.05622631,90205.0,90204.0,0.05848]
[1765248919960,0.03744837,90205.0,90204.0,0.05848]
[1765248920145,0.03744837,90205.0,90204.0,0.07587]
[1765248920457,0.03944837,90205.0,90204.0,0.08087]
[1765248920845,0.03944837,90205.0,90204.0,0.07987]
[1765248921159,0.002,90205.0,90204.0,0.08087]
[1765248923060,0.05806,90205.0,90204.0,0.08087]
[1765248931766,0.002,90205.0,90204.0,0.50087]
[1765248932365,0.03027,90205.0,90204.0,0.50087]
[1765248932749,0.002,90205.0,90204.0,0.50087]
[1765248933649,0.05622631,90214.0,90213.0,0.05748]
[1765248933954,0.05622631,90214.0,90213.0,0.4385639]
[1765248933955,0.00016631,90214.0,90213.0,0.4385639]
[1765248934160,0.05622631,90214.0,90213.0,0.05748]
[1765248936565,0.05722631,90214.0,90213.0,0.06148]
[1765248936758,0.00116631,90214.0,90213.0,0.06148]
[1765248936962,0.00016631,90214.0,90213.0,0.05848]
[1765248937261,0.00216631,90214.0,90213.0,0.45548]
[1765248937767,0.00216631,90214.0,90213.0,0.45448]
[1765248938867,0.00016631,90214.0,90213.0,0.44748]
[1765248939058,0.00216631,90214.0,90213.0,0.44848]
[1765248939860,0.00216631,90214.0,90213.0,0.05848]
[1765248940256,0.03243631,90214.0,90213.0,0.05848]
[1765248942457,0.06022631,90214.0,90213.0,0.05848]
[1765248942659,0.07131011,90214.0,90213.0,0.05848]
[1765248944176,0.06022631,90214.0,90213.0,0.05848]
[1765248958482,0.00416631,90214.0,90213.0,0.05848]
[1765248958683,0.06275631,90214.0,90213.0,0.05848]
[1765248965788,0.07384011,90214.0,90213.0,0.05848]
[1765248969892,0.02845,90208.0,90207.0,0.03979555]
[1765248970097,0.02845,90208.0,90184.0,0.01683]
[1765248970098,0.07345,90196.0,90190.0,0.18950259]
[1765248970302,0.43345,90196.0,90186.0,0.18950259]
[1765248970478,0.43345,90196.0,90195.0,0.02994631]
[1765248970792,0.43345,90196.0,90195.0,0.05897631]
[1765248971191,0.10345,90196.0,90195.0,0.05897631]
[1765248971790,0.10545,90196.0,90195.0,0.06697631]
[1765248971992,0.10545,90196.0,90195.0,0.06797631]
[1765248973077,0.50545,90196.0,90195.0,0.06797631]
[1765248973684,0.05782,90196.0,90195.0,0.06797631]
[1765248974984,0.05782,90196.0,90195.0,0.08467631]
[1765248976193,0.458906,90196.0,90195.0,0.06797631]
[1765248976490,0.458906,90196.0,90195.0,0.00916631]
[1765248976891,0.248906,90196.0,90195.0,0.03665631]
[1765248977283,0.248906,90196.0,90195.0,0.06628631]
[1765248977483,0.068906,90196.0,90195.0,0.00916631]
[1765248977690,0.488906,90196.0,90195.0,0.00916631]
[1765248978196,0.478906,90196.0,90195.0,0.00916631]
[1765248979394,0.478906,90196.0,90195.0,0.06628631]
[1765248982685,0.068906,90196.0,90195.0,0.06628631]
[1765248982885,0.068906,90196.0,90195.0,0.08298631]
[1765248983997,0.05782,90196.0,90195.0,0.08298631]
[1765248987594,0.05782,90196.0,90195.0,0.06628631]
[1765248988298,0.06749,90196.0,90195.0,0.00916631]
[1765248990306,0.06749,90196.0,90195.0,0.03665631]
[1765248992706,0.06749,90196.0,90195.0,0.06628631]
[1765248993805,0.44749,90196.0,90195.0,0.00916631]
[1765248996193,0.05703,90181.0,90180.0,0.18692259]
[1765248996399,0.05703,90181.0,90180.0,0.05712]
[1765248997306,0.05803,90181.0,90180.0,0.05712]
[1765248997607,0.05903,90181.0,90180.0,0.06112]
[1765248997906,0.0701179,90181.0,90180.0,0.06112]
[1765248998695,0.0701179,90181.0,90180.0,0.07782]
[1765249000202,0.0701179,90181.0,90180.0,0.004]
[1765249002299,0.0691179,90181.0,90180.0,0.005]
[1765249002809,0.0701179,90181.0,90180.0,0.001]
[1765249003194,0.0701179,90181.0,90180.0,0.02849]
[1765249003399,0.0701179,90181.0,90180.0,0.001]
[1765249003993,0.0701179,90181.0,90180.0,0.05958]
[1765249005510,0.0701179,90181.0,90180.0,0.07624]
[1765249006210,0.0701179,90181.0,90180.0,0.05958]
[1765249009608,0.0701179,90181.0,90180.0,0.001]
[1765249010912,0.4701179,90181.0,90180.0,0.001]
[1765249011211,0.067629,90172.0,90171.0,0.00016631]
[1765249011411,0.58550574,90172.0,90171.0,0.00016631]
[1765249011612,0.497629,90172.0,90171.0,0.00016631]
[1765249012314,0.499629,90172.0,90171.0,0.00016631]
[1765249012512,0.499629,90172.0,90171.0,0.00216631]
[1765249014406,0.58768313,90172.0,90171.0,0.06074631]
[1765249014716,0.58768313,90172.0,90171.0,0.03157631]
[1765249014914,0.58768313,90172.0,90171.0,0.00216631]
[1765249015121,0.13854,90172.0,90171.0,0.06074631]
[1765249015305,0.05854,90172.0,90171.0,0.06074631]
[1765249015504,0.47854,90172.0,90171.0,0.06074631]
[1765249016215,0.27854,90172.0,90171.0,0.06074631]
[1765249017413,0.27854,90172.0,90171.0,0.00216631]
[1765249017811,0.27854,90172.0,90171.0,0.06074631]
[1765249019716,0.05854,90172.0,90171.0,0.06074631]
[1765249021201,0.05854,90172.0,90171.0,0.00216631]
[1765249021416,0.48854,90172.0,90171.0,0.00216631]
[1765249023821,0.48854,90172.0,90171.0,0.03157631]
[1765249024424,0.23854,90172.0,90171.0,0.06074631]
[1765249025426,0.23854,90172.0,90171.0,0.00216631]
[1765249026125,0.23854,90172.0,90171.0,0.03157631]
[1765249027519,0.41854,90172.0,90171.0,0.00216631]
[1765249029308,0.05494,90166.0,90165.0,0.00110908]
[1765249029524,0.9493,90166.0,90165.0,0.00110908]
[1765249030313,0.9603897,90166.0,90165.0,0.00110908]
[1765249030521,0.9623897,90166.0,90165.0,0.00110908]
[1765249030929,0.9683897,90166.0,90165.0,0.00110908]
[1765249036325,0.9683897,90166.0,90156.0,0.00016631]
[1765249036326,0.0685508,90157.0,90156.0,0.00016631]
[1765249036529,0.4885508,90157.0,90156.0,0.00016631]
[1765249037223,0.4885508,90157.0,90156.0,0.02800631]
[1765249037425,0.4885508,90157.0,90156.0,0.00016631]
[1765249037728,0.4945508,90157.0,90156.0,0.00016631]
[1765249038930,0.4965508,90157.0,90156.0,0.00016631]
[1765249039131,0.4965508,90157.0,90156.0,0.05642631]
[1765249041627,0.4965508,90157.0,90156.0,0.02800631]
[1765249041830,0.4965508,90157.0,90156.0,0.00016631]
[1765249050139,0.4925508,90157.0,90156.0,0.00016631]
[1765249050829,0.4905508,90157.0,90156.0,0.00016631]
[1765249051035,0.4905508,90157.0,90156.0,0.00216631]
[1765249051235,0.0685528,90141.0,90140.0,0.05736939]
[1765249051429,0.5830328,90141.0,90140.0,0.05736939]
[1765249052835,0.5870328,90141.0,90140.0,0.07513939]
[1765249055739,0.57594,90141.0,90140.0,0.07513939]
[1765249058143,0.54715,90141.0,90140.0,0.07513939]
[1765249058344,0.51848,90141.0,90140.0,0.07513939]
[1765249058745,0.004,90141.0,90140.0,0.44513939]
[1765249059046,0.004,90141.0,90140.0,0.45623229]
[1765249059339,0.0685509,90157.0,90156.0,0.05626]
[1765249060431,0.0685509,90157.0,90156.0,0.05726]
[1765249060632,0.05746,90157.0,90156.0,0.05726]
[1765249060828,0.05762631,90166.0,90165.0,0.07403]
[1765249062745,0.05962631,90166.0,90165.0,0.07803]
[1765249063128,0.05762631,90166.0,90165.0,0.07403]
[1765249063333,0.05962631,90166.0,90165.0,0.08003]
[1765249063546,0.05962631,90166.0,90165.0,0.06226]
[1765249063843,0.05962631,90166.0,90165.0,0.07962]
[1765249064044,0.05962631,90166.0,90165.0,0.07862]
[1765249064244,0.05962631,90166.0,90165.0,0.07962]
[1765249067343,0.05962631,90166.0,90165.0,0.06342]
[1765249068250,0.43962631,90166.0,90165.0,0.06342]
[1765249073546,0.09962631,90166.0,90165.0,0.06342]
[1765249073743,0.07083631,90166.0,90165.0,0.06342]
[1765249074058,0.33792631,90166.0,90165.0,0.06342]
[1765249079159,0.05792631,90166.0,90165.0,0.06342]
[1765249087560,0.05792631,90166.0,90165.0,0.006]
[1765249088251,0.05792631,90166.0,90165.0,0.03596]
[1765249090464,0.05792631,90166.0,90165.0,0.006]
[1765249091068,0.05792631,90166.0,90165.0,0.06446]
[1765249091869,0.00216631,90166.0,90165.0,0.06446]
[1765249092166,0.03206631,90166.0,90165.0,0.06446]
[1765249092867,0.00216631,90166.0,90165.0,0.06446]
[1765249093054,0.05933631,90166.0,90165.0,0.06446]
[1765249096671,0.03087631,90166.0,90165.0,0.06446]
[1765249097258,0.00216631,90166.0,90165.0,0.06446]
[1765249097664,0.00216631,90166.0,90165.0,0.4855498]
[1765249098160,0.03087631,90166.0,90165.0,0.23446]
[1765249098560,0.00216631,90166.0,90165.0,0.44446]
[1765249107683,0.00216631,90166.0,90165.0,0.4555498]
[1765249108186,0.05962082,90185.0,90184.0,0.0829675]
[1765249108478,0.0110858,90198.0,90189.0,0.05719]
[1765249108779,0.0110853,90202.0,90189.0,0.45719]
[1765249109281,0.0682548,90207.0,90206.0,0.05719]
[1765249109481,0.4382548,90207.0,90206.0,0.05719]
[1765249109862,0.4882548,90207.0,90206.0,0.05719]
[1765249110064,0.4882548,90207.0,90206.0,0.0289]
[1765249110381,0.05717,90198.0,90197.0,0.18731797]
[1765249110575,0.05717,90198.0,90197.0,0.05735631]
[1765249110973,0.39717,90198.0,90197.0,0.05735631]
[1765249111675,0.39917,90198.0,90197.0,0.06235631]
[1765249111880,0.39917,90198.0,90197.0,0.00516631]
[1765249113166,0.39917,90198.0,90197.0,0.00416631]
[1765249114283,0.39917,90198.0,90197.0,0.00216631]
[1765249114784,0.39817,90198.0,90197.0,0.00216631]
[1765249114975,0.39917,90198.0,90197.0,0.00216631]
[1765249116474,0.79917,90198.0,90197.0,0.00216631]
[1765249116986,0.80017,90198.0,90197.0,0.00116631]
[1765249117483,0.79817,90198.0,90197.0,0.00016631]
[1765249117686,0.79917,90198.0,90197.0,0.00116631]
[1765249118887,0.39917,90198.0,90197.0,0.00116631]
[1765249123285,0.0110873,90186.0,90185.0,0.05755]
[1765249123488,0.05867,90177.0,90176.0,0.05755]
[1765249123783,0.46867,90177.0,90176.0,0.05755]
[1765249124790,0.47467,90177.0,90176.0,0.05855]
[1765249125172,0.47667,90177.0,90176.0,0.05855]
[1765249126793,0.46967,90177.0,90176.0,0.06055]
[1765249127493,0.08967,90177.0,90176.0,0.06055]
[1765249129793,0.1007584,90177.0,90176.0,0.003]
[1765249129998,0.05867,90166.0,90165.0,0.00110908]
[1765249130178,0.2297597,90166.0,90165.0,0.00110908]
[1765249130386,0.4797597,90166.0,90165.0,0.00110908]
[1765249130597,0.05867,90151.0,90150.0,0.05755]
[1765249130797,0.46867,90151.0,90150.0,0.05755]
[1765249131298,0.22867,90151.0,90150.0,0.0739]
[1765249131987,0.23567,90151.0,90150.0,0.0759]
[1765249132794,0.23767,90151.0,90150.0,0.0759]
[1765249135290,0.23767,90151.0,90150.0,0.05955]
[1765249135491,0.42767,90151.0,90150.0,0.05955]
[1765249141098,0.06767,90151.0,90150.0,0.0759]
[1765249141293,0.009,90151.0,90150.0,0.0759]
[1765249141904,0.03794,90151.0,90150.0,0.0759]
[1765249142091,0.06767,90151.0,90150.0,0.0759]
[1765249142296,0.009,90151.0,90150.0,0.0759]
[1765249142704,0.00016631,90160.0,90159.0,0.05755]
[1765249142885,0.00016631,90160.0,90159.0,0.47755]
[1765249143292,0.05883631,90160.0,90159.0,0.05755]
[1765249143804,0.05883631,90160.0,90159.0,0.05855]
[1765249144002,0.05983631,90160.0,90159.0,0.06055]
[1765249144488,0.40983631,90160.0,90159.0,0.003]
[1765249145002,0.05867,90146.0,90145.0,0.0739]
[1765249146108,0.05967,90146.0,90145.0,0.0749]
[1765249146607,0.05967,90146.0,90145.0,0.05855]
[1765249147106,0.06067,90146.0,90145.0,0.05855]
[1765249149913,0.06067,90146.0,90145.0,0.001]
[1765249149914,0.49067,90146.0,90145.0,0.001]
[1765249150207,0.0562,90129.0,90128.0,0.05721]
[1765249152008,0.0562,90121.0,90120.0,0.07446]
[1765249152210,0.02776,90121.0,90120.0,0.07446]
[1765249152423,0.05693,90121.0,90120.0,0.07427]
[1765249152626,0.0690044,90128.0,90127.0,0.05702]
[1765249153826,0.05791,90128.0,90127.0,0.05702]
[1765249154022,0.069004,90132.0,90131.0,0.05702]
[1765249154328,0.149004,90132.0,90131.0,0.05702]
[1765249155328,0.469004,90132.0,90131.0,0.05702]
[1765249155928,0.470004,90132.0,90131.0,0.05702]
[1765249156124,0.472004,90132.0,90131.0,0.05802]
[1765249159629,0.488474,90132.0,90131.0,0.001]
[1765249159822,0.51195194,90132.0,90131.0,0.001]
[1765249161233,0.51195194,90132.0,90131.0,0.05802]
[1765249161433,0.49548194,90132.0,90131.0,0.05802]
[1765249162530,0.08438794,90132.0,90131.0,0.05802]
[1765249162727,0.26438794,90132.0,90131.0,0.05802]
[1765249163117,0.28085794,90132.0,90131.0,0.001]
[1765249163326,0.28085794,90132.0,90115.0,0.0285497]
[1765249163327,0.05791,90116.0,90115.0,0.0285497]
[1765249163531,0.2290059,90116.0,90115.0,0.0285497]
[1765249163730,0.2290059,90116.0,90115.0,0.0581297]
[1765249164534,0.4690059,90116.0,90115.0,0.0581297]
[1765249165132,0.4700059,90116.0,90115.0,0.0631297]
[1765249165538,0.45891,90116.0,90115.0,0.0631297]
[1765249165734,0.20891,90116.0,90115.0,0.0621297]
[1765249165930,0.20791,90116.0,90115.0,0.0581297]
[1765249166136,0.05891,90116.0,90115.0,0.0601297]
[1765249168232,0.40891,90116.0,90115.0,0.0031097]
[1765249168632,0.40891,90116.0,90115.0,0.0305497]
[1765249168837,0.40891,90116.0,90115.0,0.0601297]
[1765249169222,0.15891,90116.0,90115.0,0.0601297]
[1765249169823,0.05891,90116.0,90115.0,0.0601297]
[1765249170837,0.08891,90116.0,90115.0,0.0601297]
[1765249172142,0.05891,90116.0,90115.0,0.0601297]
[1765249178729,0.02974,90116.0,90115.0,0.0601297]
[1765249179141,0.001,90116.0,90115.0,0.4301297]
[1765249179331,0.02456565,90116.0,90115.0,0.4301297]
[1765249179938,0.02456565,90116.0,90115.0,0.1801297]
[1765249181533,0.02456565,90116.0,90115.0,0.3401297]
[1765249182041,0.001,90116.0,90115.0,0.3512257]
[1765249187056,0.05836,90116.0,90115.0,0.3401297]
[1765249187351,0.02904,90116.0,90115.0,0.3401297]
[1765249187856,0.001,90116.0,90115.0,0.3401297]
[1765249188350,0.05836,90116.0,90115.0,0.0601297]
[1765249188544,0.08195224,90116.0,90115.0,0.0601297]
[1765249188743,0.08195224,90116.0,90115.0,0.0304697]
[1765249188949,0.50195224,90116.0,90115.0,0.0596297]
[1765249190645,0.50195224,90116.0,90115.0,0.0773097]
[1765249190846,0.50195224,90116.0,90115.0,0.0596297]
[1765249193153,0.08195224,90116.0,90115.0,0.0596297]
[1765249193346,0.08195224,90116.0,90115.0,0.0773097]
[1765249193547,0.02459224,90116.0,90115.0,0.0773097]
[1765249194748,0.02459224,90116.0,90115.0,0.4684057]
[1765249195153,0.001,90116.0,90115.0,0.4684057]
[1765249197060,0.001,90116.0,90115.0,0.2284057]
[1765249197258,0.001,90116.0,90115.0,0.2173097]
[1765249198047,0.001,90116.0,90115.0,0.4173097]
[1765249198664,0.001,90116.0,90115.0,0.47721792]
[1765249199461,0.001,90116.0,90115.0,0.22721792]
[1765249200060,0.0110955,90119.0,90115.0,0.22721792]
[1765249200061,0.0849236,90135.0,90134.0,0.05652]
[1765249200248,0.09201143,90135.0,90134.0,0.05652]
[1765249200452,0.06269143,90135.0,90134.0,0.05652]
[1765249200647,0.08091783,90135.0,90134.0,0.05652]
[1765249200948,0.02355783,90135.0,90134.0,0.05652]
[1765249201149,0.02355783,90135.0,90134.0,0.33789742]
[1765249201357,0.011092,90148.0,90137.0,0.05652]
[1765249201557,0.0110915,90152.0,90137.0,0.45652]
[1765249202060,0.0391318,90149.0,90148.0,0.05652]
[1765249202260,0.0626705,90149.0,90148.0,0.05652]
[1765249202658,0.0110911,90155.0,90154.0,0.05652]
[1765249202867,0.06265618,90155.0,90154.0,0.05652]
[1765249203053,0.09197618,90155.0,90154.0,0.05652]
[1765249203253,0.0684511,90155.0,90154.0,0.05652]
[1765249203654,0.4984511,90155.0,90154.0,0.05652]
[1765249204960,0.5004511,90155.0,90154.0,0.06352]
[1765249205468,0.4984511,90155.0,90154.0,0.05752]